bitfinex/quotes_ETHUSD_20251214
["timestamp","ask_amount","ask_price","bid_price","bid_amount"]
[1765729762347,6.44745324,3102.0,3101.4,0.4678]
[1765729762658,5.04726906,3101.9,3101.3,0.002]
[1765729762862,0.09102583,3101.7,3101.3,0.002]
[1765729763230,6.44786896,3101.8,3101.3,0.002]
[1765729763531,6.91886896,3101.8,3101.3,0.002]
[1765729763732,0.77058948,3101.7,3101.3,0.002]
[1765729765091,3.99466694,3101.7,3101.6,0.4752]
[1765729765442,3.99466694,3101.7,3101.4,0.4678]
[1765729765639,3.99466694,3101.7,3101.3,0.002]
[1765729766779,7.7066444,3101.7,3101.3,0.002]
[1765729767258,3.99466694,3101.7,3101.3,0.002]
[1765729767460,0.93637997,3102.1,3101.6,0.4962]
[1765729767672,3.22372662,3102.0,3101.6,0.4962]
[1765729767841,3.73772662,3102.0,3101.6,0.4962]
[1765729768363,6.9614757,3102.0,3101.6,0.4962]
[1765729768982,7.4493757,3102.0,3101.6,0.4962]
[1765729769140,0.4642,3101.7,3101.4,0.4807]
[1765729769336,0.4642,3101.7,3101.3,0.002]
[1765729769337,0.085,3101.5,3101.3,0.002]
[1765729769540,0.0896,3101.6,3101.3,0.002]
[1765729769771,3.22406216,3101.7,3101.3,0.002]
[1765729769971,3.22406216,3101.7,3101.3,0.4827]
[1765729770267,0.0615,3101.4,3101.3,0.002]
[1765729771467,3.2241995,3101.6,3101.3,0.002]
[1765729773666,0.0615,3101.4,3101.3,0.002]
[1765729774740,4.39998572,3101.7,3101.3,0.9789]
[1765729774939,4.91398572,3101.7,3101.3,0.9789]
[1765729775941,8.62595541,3101.7,3101.3,0.4982]
[1765729776184,0.87169812,3101.6,3101.3,0.4982]
[1765729777274,3.73806969,3101.7,3101.3,0.9789]
[1765729778479,6.96213938,3101.7,3101.3,0.4982]
[1765729778770,7.45003938,3101.7,3101.3,0.4982]
[1765729779773,0.1888,3102.2,3101.6,0.4962]
[1765729779945,3.2236227,3102.1,3101.3,0.4827]
[1765729780144,6.44725588,3102.1,3101.3,0.4827]
[1765729780370,7.22015405,3102.1,3101.3,0.4827]
[1765729780569,0.09102583,3102.0,3101.3,0.4827]
[1765729781257,0.04029788,3101.9,3101.3,0.4827]
[1765729781462,0.57892583,3102.0,3101.3,0.4827]
[1765729781657,0.09102583,3102.0,3101.3,0.4827]
[1765729782174,3.22383055,3101.9,3101.3,0.4827]
[1765729782867,3.22383055,3101.9,3101.3,3.70712297]
[1765729783072,4.07395671,3102.0,3101.8,0.4962]
[1765729783579,0.0615,3101.9,3101.4,0.4807]
[1765729783993,3.22393448,3101.8,3101.4,0.4807]
[1765729786585,3.22383055,3101.9,3101.4,0.4807]
[1765729790687,3.22383055,3101.9,3101.8,0.4962]
[1765729790888,3.8640283,3101.9,3101.8,0.4962]
[1765729791396,3.9255283,3101.9,3101.6,0.4807]
[1765729791995,3.9255283,3101.9,3101.4,0.4807]
[1765729794777,3.28533055,3101.9,3101.4,0.4807]
[1765729794978,3.2236227,3102.1,3101.8,0.4962]
[1765729795278,6.4472454,3102.1,3101.8,0.4962]
[1765729795684,0.4642,3101.9,3101.5,0.4807]
[1765729796700,3.68810241,3101.9,3101.5,0.4807]
[1765729797093,0.0008,3101.6,3101.3,0.002]
[1765729797298,0.514,3101.7,3101.4,0.4935]
[1765729797672,0.514,3101.7,3101.3,0.002]
[1765729797876,0.514,3101.7,3101.3,0.4955]
[1765729798778,3.22414237,3101.6,3101.3,0.4955]
[1765729800409,2.81514237,3101.6,3101.3,0.4955]
[1765729800620,3.22408052,3101.7,3101.3,0.4955]
[1765729800793,3.22395657,3101.8,3101.3,0.4955]
[1765729800980,3.92352809,3101.9,3101.7,0.4885]
[1765729801306,3.92352809,3101.9,3101.5,0.4935]
[1765729801605,6.53873699,3101.9,3101.3,0.4955]
[1765729801809,0.082,3101.4,3101.3,0.002]
[1765729802111,0.596,3101.4,3101.3,0.002]
[1765729802407,0.4661,3101.4,3101.3,0.002]
[1765729802594,5.31228281,3101.8,3101.3,0.4905]
[1765729802917,1.09447529,3102.0,3101.7,0.4885]
[1765729803090,6.9612454,3102.1,3101.8,0.4885]
[1765729803407,6.9612454,3102.1,3101.4,0.4935]
[1765729804117,0.4671,3102.0,3101.4,0.4935]
[1765729804987,3.22383055,3101.9,3101.4,0.4935]
[1765729805307,3.22343188,3102.3,3101.9,0.4885]
[1765729805481,6.44693524,3102.3,3102.0,0.4885]
[1765729806208,0.0885,3102.1,3101.7,0.4935]
[1765729807099,0.515,3102.5,3102.0,0.4885]
[1765729807100,3.22333822,3102.4,3102.0,0.4885]
[1765729807307,3.22333822,3102.4,3102.0,0.982]
[1765729808117,6.44667644,3102.4,3102.1,0.4935]
[1765729808319,3.22333822,3102.4,3102.1,0.4935]
[1765729808497,3.22333822,3102.4,3101.7,3.22403832]
[1765729808698,3.22333822,3102.4,3102.3,0.4885]
[1765729809113,3.22420709,3102.5,3102.3,0.4885]
[1765729809993,0.001,3102.5,3102.4,0.982]
[1765729812086,0.001,3102.5,3102.4,1.387504]
[1765729813219,0.001,3102.5,3102.4,1.89999586]
[1765729813592,0.001,3102.5,3102.4,1.387504]
[1765729813800,0.001,3102.6,3102.5,0.405504]
[1765729814001,0.001,3102.6,3102.5,42.32851997]
[1765729814323,0.001,3102.6,3102.5,31.51651232]
[1765729814692,0.001,3102.7,3102.6,30.405504]
[1765729814897,0.001,3102.7,3102.6,37.26147392]
[1765729815126,0.001,3102.7,3102.6,9.39647392]
[1765729815317,0.001,3102.7,3102.6,11.39189685]
[1765729816427,0.001,3102.7,3102.6,6.66008933]
[1765729816624,0.001,3102.7,3102.6,5.74058533]
[1765729816828,0.001,3102.7,3102.6,5.16011004]
[1765729817024,0.001,3102.7,3102.6,2.45100684]
[1765729817227,0.001,3102.7,3102.6,5.67411004]
[1765729817410,0.001,3102.7,3102.6,6.07961404]
[1765729818617,0.001,3102.7,3102.6,46.07961404]
[1765729818819,0.001,3102.7,3102.6,35.58611404]
[1765729819017,0.001,3102.7,3102.6,5.67411004]
[1765729819226,0.001,3102.7,3102.6,6.07961404]
[1765729821330,0.001,3102.7,3102.6,5.16011004]
[1765729821534,0.001,3102.7,3102.6,5.67411004]
[1765729821735,0.001,3102.7,3102.6,1.95750684]
[1765729821942,0.001,3102.7,3102.6,1.0025]
[1765729822154,0.001,3102.7,3102.6,1.496]
[1765729822314,0.001,3102.7,3102.6,0.982]
[1765729822502,0.0872,3102.7,3102.6,0.405504]
[1765729824108,0.0872,3102.7,3102.3,3.73639217]
[1765729824300,0.001,3102.7,3102.6,0.4885]
[1765729824504,0.001,3102.7,3102.6,0.894004]
[1765729824705,0.001,3102.7,3102.6,4.6106072]
[1765729825164,0.001,3102.7,3102.6,5.19108249]
[1765729825917,0.001,3102.7,3102.6,6.1584484]
[1765729826115,0.001,3102.7,3102.6,6.72200756]
[1765729826835,0.001,3102.7,3102.6,36.72200756]
[1765729828416,0.001,3102.7,3102.6,40.59733697]
[1765729828606,0.001,3102.7,3102.6,32.40034583]
[1765729828807,0.001,3102.7,3102.6,16.42934583]
[1765729829028,0.001,3102.7,3102.6,7.24040756]
[1765729829241,0.001,3102.7,3102.6,4.77406236]
[1765729829431,0.001,3102.7,3102.6,6.27304165]
[1765729829637,0.001,3102.7,3102.6,6.76384165]
[1765729830747,0.001,3102.7,3102.6,0.918504]
[1765729831042,0.5461,3102.7,3101.9,0.1944]
[1765729831246,0.0049,3102.6,3102.5,0.002]
[1765729831666,3.7178032,3102.6,3102.5,0.002]
[1765729831956,4.41198257,3102.6,3102.5,0.002]
[1765729833041,0.0049,3102.6,3102.5,0.002]
[1765729833745,0.001,3102.7,3102.5,0.002]
[1765729834847,3.22401086,3102.7,3102.5,0.002]
[1765729835345,0.0596,3102.6,3102.5,0.002]
[1765729835549,0.001,3102.7,3102.5,0.002]
[1765729839439,0.0596,3102.6,3102.5,0.002]
[1765729840733,0.5451,3102.6,3102.5,0.002]
[1765729840933,0.92201096,3102.6,3102.5,0.002]
[1765729841133,0.0596,3102.6,3102.5,0.002]
[1765729841358,0.0638,3102.6,3102.5,0.002]
[1765729841827,0.001,3102.7,3102.5,0.4548]
[1765729842230,0.001,3102.7,3102.6,0.4528]
[1765729844667,0.001,3102.7,3102.5,3.22519854]
[1765729845340,0.001,3102.7,3102.6,0.4528]
[1765729846556,0.001,3102.7,3102.6,3.6759032]
[1765729846756,0.001,3102.7,3102.6,0.4528]
[1765729848650,0.0606,3102.7,3102.5,0.515]
[1765729848844,0.001,3102.7,3102.5,0.515]
[1765729849246,0.001,3102.7,3102.6,0.9517]
[1765729849968,0.0618,3102.7,3102.5,0.93871935]
[1765729850269,0.001,3102.7,3102.6,0.4528]
[1765729850472,0.001,3102.7,3102.6,0.9517]
[1765729850640,0.001,3102.7,3102.6,4.1748032]
[1765729851166,0.001,3102.7,3102.6,0.9517]
[1765729851330,0.001,3102.7,3102.5,1.34422335]
[1765729851534,0.001,3102.7,3102.5,4.56739271]
[1765729851859,0.001,3102.7,3102.6,0.4528]
[1765729852064,0.001,3102.7,3102.5,0.920504]
[1765729852271,0.001,3102.7,3102.5,4.14368508]
[1765729852444,0.001,3102.7,3102.5,0.920504]
[1765729852767,0.001,3102.7,3102.6,0.4528]
[1765729852965,0.0596,3102.6,3102.5,0.920504]
[1765729853174,0.001,3102.7,3102.5,0.920504]
[1765729853467,0.0596,3102.6,3102.5,0.920504]
[1765729854053,0.5451,3102.6,3102.5,0.002]
[1765729854455,1.08160401,3102.6,3102.5,0.002]
[1765729854637,4.30470721,3102.6,3102.5,0.002]
[1765729854842,0.59610401,3102.6,3102.5,0.002]
[1765729855041,0.0596,3102.6,3102.5,0.002]
[1765729855570,3.7682032,3102.6,3102.5,0.002]
[1765729857177,3.2827032,3102.6,3102.5,0.002]
[1765729857357,3.7682032,3102.6,3102.5,0.002]
[1765729861674,8.49611748,3102.6,3102.5,0.002]
[1765729862265,9.99952119,3102.6,3102.5,0.002]
[1765729863081,5.27160691,3102.6,3102.5,0.002]
[1765729865857,15.30791076,3102.6,3102.5,0.002]
[1765729866381,15.71341476,3102.6,3102.5,0.002]
[1765729866598,15.82091076,3102.6,3102.5,0.002]
[1765729867160,0.58047529,3102.5,3101.5,0.002]
[1765729867366,0.85860112,3101.6,3101.5,0.002]
[1765729867677,5.09304349,3101.6,3101.5,0.002]
[1765729872185,5.13334526,3101.6,3101.5,0.002]
[1765729872859,4.58004349,3101.6,3101.5,0.002]
[1765729873060,5.09304349,3101.6,3101.5,0.002]
[1765729873367,5.9338537,3101.6,3101.5,0.002]
[1765729873565,5.26235258,3101.6,3101.5,0.002]
[1765729874568,5.30265435,3101.6,3101.5,0.002]
[1765729874822,5.88312964,3101.6,3101.5,0.002]
[1765729875021,12.2136467,3101.6,3101.5,0.002]
[1765729875199,12.17334493,3101.6,3101.5,0.002]
[1765729877299,4.83252787,3101.6,3101.5,0.002]
[1765729877503,5.84282787,3101.6,3101.5,0.002]
[1765729877999,5.88312964,3101.6,3101.5,0.002]
[1765729880908,6.28863364,3101.6,3101.5,0.002]
[1765729881095,0.0053,3101.0,3100.9,1e-08]
[1765729881293,7.56062775,3101.0,3100.9,1e-08]
[1765729881482,8.01761818,3101.0,3100.9,1e-08]
[1765729883108,11.24238438,3101.0,3100.9,1e-08]
[1765729883803,10.72938438,3101.0,3100.9,1e-08]
[1765729884008,12.64689111,3101.0,3100.9,1e-08]
[1765729885479,12.94412909,3101.0,3100.9,1e-08]
[1765729886011,19.67963309,3101.0,3100.9,1e-08]
[1765729886712,19.16663309,3101.0,3100.9,1e-08]
[1765729886890,19.27512909,3101.0,3100.9,1e-08]
[1765729888575,19.27506772,3101.0,3100.9,1e-08]
[1765729889384,19.26936772,3101.0,3100.9,1e-08]
[1765729889614,19.67487172,3101.0,3100.9,1e-08]
[1765729895315,18.66927172,3101.0,3100.9,1e-08]
[1765729895518,19.67657172,3101.0,3100.9,1e-08]
[1765729896912,19.67757172,3101.0,3100.9,1e-08]
[1765729898825,19.80672917,3101.0,3100.9,1e-08]
[1765729903436,0.98597929,3100.9,3100.6,0.002]
[1765729903598,1.31210512,3100.7,3100.6,0.002]
[1765729903798,4.53718332,3100.7,3100.6,0.002]
[1765729904027,5.03048332,3100.7,3100.6,0.002]
[1765729904233,5.15964494,3100.7,3100.6,0.002]
[1765729905439,5.19995841,3100.7,3100.6,0.002]
[1765729905737,6.93801402,3100.7,3100.6,0.002]
[1765729905930,6.89770055,3100.7,3100.6,0.002]
[1765729907130,13.22770055,3100.7,3100.6,0.002]
[1765729907328,22.35873515,3100.7,3099.9,0.002]
[1765729907525,0.58047529,3100.1,3099.9,0.002]
[1765729907730,1.09447529,3100.1,3100.0,0.49]
[1765729907942,4.32017768,3100.1,3100.0,0.9546]
[1765729908249,4.32017768,3100.1,3100.0,1.1494]
[1765729910938,5.08385774,3100.1,3100.0,1.1494]
[1765729911109,5.18037901,3100.1,3100.0,0.002]
[1765729911578,0.1894,3099.9,3099.7,0.002]
[1765729911850,7.29979414,3099.8,3099.7,0.002]
[1765729912015,0.58587529,3099.7,3099.1,0.002]
[1765729912214,0.0509,3099.5,3099.1,0.002]
[1765729912720,0.5442,3099.5,3099.1,0.002]
[1765729913130,4.48020086,3099.5,3099.1,0.002]
[1765729915324,4.57122669,3099.5,3099.1,0.002]
[1765729915521,5.82101045,3099.5,3099.1,0.002]
[1765729915945,5.86133953,3099.5,3099.1,0.002]
[1765729919853,6.37533953,3099.5,3099.1,0.002]
[1765729920151,6.33501045,3099.5,3099.1,0.002]
[1765729920362,6.33501045,3099.5,3098.7,1e-08]
[1765729920363,0.888304,3098.8,3098.7,1e-08]
[1765729920526,1.09447529,3098.8,3098.7,0.49390001]
[1765729920721,1.09447529,3098.8,3098.7,0.97610001]
[1765729920952,1.5883753,3098.8,3098.7,0.97610001]
[1765729921162,2.41908478,3098.8,3098.7,0.97610001]
[1765729921768,2.55832297,3098.8,3098.7,1e-08]
[1765729921918,3.00572297,3098.8,3098.7,1e-08]
[1765729922122,3.41122697,3098.8,3098.7,1e-08]
[1765729922323,6.6382826,3098.8,3098.7,1e-08]
[1765729922524,6.59794441,3098.8,3098.7,1e-08]
[1765729923352,13.2353545,3098.8,3098.7,1e-08]
[1765729924755,0.0045,3098.2,3098.1,1e-08]
[1765729924935,7.82741121,3098.2,3098.1,1e-08]
[1765729925255,7.92261121,3098.2,3098.1,1e-08]
[1765729925565,8.96921121,3098.2,3098.1,1e-08]
[1765729925739,9.37471521,3098.2,3098.1,1e-08]
[1765729926055,2.72297264,3098.2,3098.1,0.48220001]
[1765729926429,5.43665322,3098.2,3098.1,1e-08]
[1765729926639,5.95065322,3098.2,3098.1,0.48220001]
[1765729927176,6.45585722,3098.2,3098.1,1e-08]
[1765729927382,6.90245722,3098.2,3098.1,1e-08]
[1765729928248,5.94185722,3098.2,3098.1,1e-08]
[1765729928453,6.49620322,3098.2,3098.1,1e-08]
[1765729928651,6.90245722,3098.2,3098.1,1e-08]
[1765729929379,0.0045,3097.8,3097.4,0.002]
[1765729929596,0.0054,3097.5,3096.3,0.6938]
[1765729929878,7.21788538,3097.0,3096.9,0.4959]
[1765729930167,7.73188538,3097.0,3096.9,0.4959]
[1765729930339,7.73188538,3097.0,3096.9,0.9781]
[1765729930541,8.22778538,3097.0,3096.9,0.9781]
[1765729930848,12.78389914,3097.0,3096.9,0.002]
[1765729931166,13.23049914,3097.0,3096.9,0.002]
[1765729931741,0.1881,3096.3,3096.2,1e-08]
[1765729931937,8.32548938,3096.3,3096.2,1e-08]
[1765729932171,8.77558938,3096.3,3096.2,1e-08]
[1765729932371,9.65314832,3096.3,3096.2,1e-08]
[1765729932794,12.88280952,3096.3,3096.2,1e-08]
[1765729932942,12.36880952,3096.3,3096.2,1e-08]
[1765729933142,0.98597929,3096.2,3094.6,0.6938]
[1765729933451,0.09102583,3094.7,3094.6,0.6938]
[1765729933670,0.60502583,3094.7,3094.6,0.1999]
[1765729933847,0.60502583,3094.7,3094.6,0.6821]
[1765729934276,0.60502583,3094.7,3094.4,0.002]
[1765729934277,0.70392583,3094.7,3094.4,0.002]
[1765729934605,7.70508538,3094.5,3094.4,0.002]
[1765729934824,4.64302623,3094.5,3094.4,0.002]
[1765729934968,5.15702623,3094.5,3094.4,0.002]
[1765729935174,5.66143023,3094.5,3094.4,0.002]
[1765729935368,4.32601511,3094.5,3094.4,0.4842]
[1765729935793,4.83041911,3094.5,3094.4,0.002]
[1765729936198,5.27701911,3094.5,3094.4,0.002]
[1765729936394,0.98597929,3094.4,3093.2,0.4939]
[1765729936572,0.98597929,3094.4,3092.8,0.1999]
[1765729936573,0.58047529,3093.4,3092.9,0.4939]
[1765729936773,3.81337325,3093.2,3093.1,0.4939]
[1765729937304,3.81337325,3093.2,3093.1,0.9761]
[1765729937604,4.32737325,3093.2,3093.1,0.9761]
[1765729938204,0.58047529,3093.2,3093.1,0.9761]
[1765729938407,0.09102583,3093.6,3093.1,0.9761]
[1765729938615,0.09102583,3094.4,3093.5,0.4822]
[1765729938904,3.32267009,3094.4,3094.3,0.6821]
[1765729939086,0.60502583,3094.4,3094.3,0.6821]
[1765729939281,3.83667009,3094.4,3094.3,1.176]
[1765729939679,3.32215273,3094.9,3094.3,1.176]
[1765729940005,0.09102583,3094.8,3094.6,0.4822]
[1765729940201,0.09102583,3094.8,3094.4,0.4939]
[1765729940373,0.09102583,3094.8,3094.7,0.4822]
[1765729940922,3.90272769,3094.8,3094.7,0.9761]
[1765729941619,0.58047529,3094.7,3094.3,0.6938]
[1765729941996,0.58047529,3094.7,3094.6,0.4822]
[1765729942190,0.62086692,3094.7,3094.6,0.4822]
[1765729942383,0.62086692,3094.7,3094.6,0.9761]
[1765729942589,0.62086692,3094.7,3093.1,0.405504]
[1765729942590,8.0271116,3094.7,3093.1,0.405504]
[1765729942785,0.09102583,3093.7,3093.2,0.4939]
[1765729943017,3.74647995,3093.6,3093.2,0.4939]
[1765729943500,3.74647995,3093.6,3093.5,0.4822]
[1765729943821,0.09102583,3093.7,3093.5,0.4822]
[1765729943989,0.09102583,3093.7,3093.6,0.9761]
[1765729944190,0.60502583,3093.7,3093.6,0.9761]
[1765729944519,3.8374013,3093.7,3093.6,0.9761]
[1765729945087,3.3234013,3093.7,3093.6,0.9761]
[1765729945295,0.09102583,3094.3,3093.6,0.9761]
[1765729945494,3.23185314,3094.2,3093.7,0.4939]
[1765729945706,3.74585314,3094.2,3093.7,0.4939]
[1765729945913,4.32632843,3094.2,3094.1,0.6821]
[1765729946222,3.3225406,3094.6,3094.1,0.6821]
[1765729946404,3.23151477,3094.6,3094.5,0.4673]
[1765729946594,3.81199006,3094.6,3094.5,0.4673]
[1765729946796,3.90301589,3094.6,3094.5,0.9274]
[1765729951228,0.60502583,3094.6,3094.5,0.4673]
[1765729951397,0.60502583,3094.6,3094.5,0.9274]
[1765729951601,0.60502583,3094.6,3094.5,0.4673]
[1765729951800,0.60502583,3094.6,3094.1,0.1999]
[1765729952027,0.09102583,3094.2,3094.1,0.66]
[1765729952231,0.67612583,3094.2,3093.5,0.4601]
[1765729952399,0.09102583,3093.6,3093.5,0.4601]
[1765729952595,0.60502583,3093.6,3093.5,0.4601]
[1765729952911,0.60502583,3093.6,3093.5,0.9274]
[1765729953319,0.09102583,3093.6,3093.5,0.9274]
[1765729953634,3.83750578,3093.6,3093.5,0.9274]
[1765729954219,4.41798107,3093.6,3093.5,0.9274]
[1765729954641,0.58047529,3093.5,3093.1,0.4601]
[1765729954929,0.09102583,3093.2,3093.1,0.4601]
[1765729955117,1.18550112,3093.2,3093.0,0.2019]
[1765729955297,1.18550112,3093.2,3093.0,0.662]
[1765729955298,4.32747777,3093.1,3093.0,0.662]
[1765729955836,4.32747777,3093.1,3093.0,0.002]
[1765729956127,4.32747777,3093.1,3093.0,0.4693]
[1765729956327,5.72844817,3093.1,3093.0,0.002]
[1765729956631,5.72844817,3093.1,3093.0,0.4693]
[1765729956939,4.32747777,3093.1,3093.0,0.9294]
[1765729957097,4.32747777,3093.1,3093.0,0.002]
[1765729957297,0.514,3093.9,3093.0,0.9294]
[1765729957498,6.39871536,3093.8,3093.1,0.6607]
[1765729957737,0.09102583,3093.2,3093.1,0.6607]
[1765729957906,0.60602583,3093.2,3093.1,0.6607]
[1765729958107,0.60602583,3093.2,3093.1,1.1208]
[1765729958408,0.67712583,3093.2,3093.0,0.002]
[1765729958609,7.44383824,3093.1,3093.0,0.002]
[1765729958811,8.30092465,3093.1,3093.0,0.002]
[1765729959404,11.53392713,3093.1,3093.0,0.002]
[1765729960359,24.87144105,3093.1,3092.2,0.002]
[1765729960500,1.35120112,3092.3,3092.2,0.002]
[1765729960700,1.96732011,3092.3,3092.2,0.002]
[1765729960931,1.96732011,3092.3,3092.2,0.4693]
[1765729961102,0.60602583,3092.3,3092.2,0.9294]
[1765729961303,3.90534001,3092.3,3092.2,0.4693]
[1765729961531,4.42034001,3092.3,3092.2,0.4693]
[1765729961730,4.42034001,3092.3,3092.2,0.9294]
[1765729962034,3.23383889,3092.3,3092.2,0.9294]
[1765729962236,3.74883889,3092.3,3092.2,0.9294]
[1765729963236,3.74883889,3092.3,3092.2,0.002]
[1765729963436,3.74883889,3092.3,3092.2,0.9294]
[1765729963637,4.32931418,3092.3,3092.2,0.4693]
[1765729964144,5.09472067,3092.3,3092.2,0.4693]
[1765729964318,12.00718362,3092.3,3092.2,0.002]
[1765729964907,4.57972067,3092.3,3092.2,0.4693]
[1765729965241,4.32931418,3092.3,3092.2,0.002]
[1765729965837,3.81431418,3092.3,3092.2,0.002]
[1765729966037,4.82671418,3092.3,3092.2,0.002]
[1765729966334,4.88011418,3092.3,3092.2,0.002]
[1765729966735,1.07787529,3092.2,3092.1,1e-08]
[1765729966919,8.08942024,3092.2,3092.1,1e-08]
[1765729967117,8.60442024,3092.2,3092.1,1e-08]
[1765729967338,11.72886771,3092.2,3092.1,1e-08]
[1765729967639,12.24386771,3092.2,3092.1,1e-08]
[1765729968014,11.72886771,3092.2,3092.1,1e-08]
[1765729968210,12.24386771,3092.2,3092.1,1e-08]
[1765729968414,11.78496371,3092.2,3092.1,1e-08]
[1765729968734,11.83836371,3092.2,3092.1,1e-08]
[1765729968930,12.24386771,3092.2,3092.1,1e-08]
[1765729970248,12.24386771,3092.2,3091.8,1e-08]
[1765729970249,1.087504,3091.9,3091.8,1e-08]
[1765729970458,0.09102583,3091.9,3091.8,1e-08]
[1765729970746,1.18650112,3091.9,3091.8,0.46730001]
[1765729970946,1.18650112,3091.9,3091.8,1e-08]
[1765729971153,0.67150112,3091.9,3091.8,1e-08]
[1765729971313,2.00662859,3091.9,3091.8,1e-08]
[1765729971511,2.52162859,3091.9,3091.8,1e-08]
[1765729971724,4.76428184,3091.9,3091.8,1e-08]
[1765729971961,4.37116075,3091.9,3091.8,0.92740001]
[1765729972256,4.33073254,3091.9,3091.8,0.92740001]
[1765729972429,4.37116075,3091.9,3091.8,1e-08]
[1765729973671,3.85516075,3091.9,3091.8,1e-08]
[1765729973830,4.33073254,3091.9,3091.8,1e-08]
[1765729974027,3.81473254,3091.9,3091.8,0.46730001]
[1765729974251,3.23383889,3092.3,3091.8,0.46730001]
[1765729974252,0.09102583,3093.6,3091.8,0.92740001]
[1765729974439,13.4471738,3093.3,3092.4,0.1934]
[1765729974743,0.62088651,3093.2,3092.4,0.1934]
[1765729974940,6.98684946,3093.2,3092.5,0.4601]
[1765729975140,0.09102583,3092.7,3092.5,0.4601]
[1765729975380,0.516,3092.6,3092.5,0.4601]
[1765729975558,0.516,3092.6,3092.4,0.1934]
[1765729975730,3.32465557,3092.5,3092.4,0.1934]
[1765729975932,3.74962974,3092.5,3092.4,0.1934]
[1765729976132,3.74962974,3092.5,3092.4,0.6443]
[1765729976532,3.74962974,3092.5,3092.4,1.1273]
[1765729977135,3.23362974,3092.5,3092.4,1.1273]
[1765729977337,3.74962974,3092.5,3092.4,1.1273]
[1765729978150,3.23362974,3092.5,3092.4,0.6443]
[1765729978352,3.74962974,3092.5,3092.4,1.1273]
[1765729980361,3.23459812,3092.6,3092.4,1.1273]
[1765729980558,0.516,3092.5,3092.4,0.1934]
[1765729980863,0.001,3092.6,3092.5,0.4509]
[1765729981066,6.46475094,3093.7,3092.5,1.64507513]
[1765729981232,3.23237547,3093.7,3092.6,0.405504]
[1765729981563,0.516,3093.9,3093.6,0.6376]
[1765729981741,0.516,3093.9,3093.8,0.4509]
[1765729981939,3.74816652,3093.9,3093.8,0.4509]
[1765729982143,3.23216652,3093.9,3093.8,0.9339]
[1765729982343,3.74816652,3093.9,3093.8,0.9339]
[1765729982540,0.001,3094.4,3093.8,0.9339]
[1765729982734,3.23264426,3094.4,3094.3,0.6376]
[1765729983064,3.74864426,3094.4,3094.3,1.1206]
[1765729983267,3.74864426,3094.4,3094.3,0.6376]
[1765729983469,5.11817008,3094.4,3094.3,0.6376]
[1765729983636,4.42014538,3094.4,3094.3,1.1206]
[1765729983836,3.83967009,3094.4,3094.3,1.1206]
[1765729984249,4.42014538,3094.4,3094.3,1.1206]
[1765729984635,4.32911955,3094.4,3094.3,1.1206]
[1765729985150,4.32911955,3094.4,3094.3,0.6376]
[1765729985343,3.23264426,3094.4,3094.3,1.1206]
[1765729985563,3.74864426,3094.4,3094.3,1.1206]
[1765729985992,3.23264426,3094.4,3094.3,1.1206]
[1765729986155,3.74864426,3094.4,3094.3,1.1206]
[1765729986544,0.001,3094.4,3094.3,1.1206]
[1765729988572,0.001,3094.4,3094.3,4.78760422]
[1765729989337,0.001,3094.4,3094.3,5.19310822]
[1765729990070,0.001,3094.4,3094.3,1.96135953]
[1765729990278,0.001,3094.4,3094.3,1.526104]
[1765729990439,0.001,3094.4,3094.3,1.1206]
[1765729990843,0.001,3094.4,3092.5,3.23355509]
[1765729990844,0.001,3094.4,3094.0,0.483]
[1765729991143,0.516,3094.3,3094.0,0.483]
[1765729991971,3.23185314,3094.2,3092.9,0.1867]
[1765729992270,0.516,3094.1,3094.0,0.483]
[1765729992575,0.516,3094.1,3092.9,0.1867]
[1765729992576,2.33224538,3094.1,3093.5,0.483]
[1765729992887,1.36947175,3094.1,3092.9,0.1867]
[1765729993171,1.36947175,3094.1,3093.7,0.483]
[1765729993475,1.27844592,3094.1,3092.9,0.1867]
[1765729993770,1.33871857,3094.0,3093.0,0.483]
[1765729994072,9.69649956,3093.9,3093.0,0.483]
[1765729994484,6.46433304,3093.9,3093.0,0.483]
[1765729994687,6.46433304,3093.9,3092.8,3.23329713]
[1765729994872,6.46433304,3093.9,3091.8,1e-08]
[1765729994873,0.6762,3092.7,3091.8,1e-08]
[1765729995182,6.36039081,3092.3,3091.8,1e-08]
[1765729995353,0.58047529,3092.2,3091.8,1e-08]
[1765729995552,0.1833,3092.7,3091.8,0.48300001]
[1765729995773,0.517,3092.6,3091.8,0.48300001]
[1765729996049,3.23378653,3092.4,3091.8,0.48300001]
[1765729996254,0.517,3092.3,3091.8,0.48300001]
[1765729996650,0.517,3092.3,3092.2,0.4509]
[1765729996968,0.517,3092.3,3091.8,0.48300001]
[1765729997168,0.517,3092.3,3092.2,0.4509]
[1765729997680,0.517,3092.3,3092.2,0.9339]
[1765729999386,7.04731655,3092.7,3092.2,0.9339]
[1765729999585,0.517,3092.5,3092.3,0.483]
[1765729999954,0.517,3092.6,3092.4,0.4509]
[1765730000570,3.23321288,3092.9,3092.5,0.9339]
[1765730001165,3.23321288,3092.9,3092.5,0.4509]
[1765730001366,3.23321288,3092.9,3092.6,0.483]
[1765730001977,3.23312965,3093.0,3092.6,0.483]
[1765730002491,6.4662593,3093.0,3092.6,0.483]
[1765730003091,3.23312965,3093.0,3092.6,0.483]
[1765730003460,1.09947571,3093.8,3092.9,0.4509]
[1765730003660,1.09947571,3093.8,3093.0,0.4509]
[1765730003661,0.60802583,3093.7,3093.0,0.4509]
[1765730004191,1.18850112,3093.7,3093.1,0.1867]
[1765730004371,0.58047529,3093.5,3093.1,0.1867]
[1765730004868,0.58047529,3093.5,3093.1,0.6697]
[1765730005465,0.58047529,3093.5,3093.1,0.1867]
[1765730005668,1.34582139,3093.5,3092.9,0.1867]
[1765730006089,1.34582139,3093.5,3093.0,0.472]